Workbook

Sheet Sheet1
A1: Year/Semester | B1: Total Hours Enrolled | C1: FTE | D1: Fall to Fall | E1: Fall to Spring | F1: Year to Year
D2: Spring to Spring | E2: Spring to Fall
A3: Fall 2001 | B3: 917 | C3: =B3/15 -> 61.13333333
A4: Spring 2002 | B4: 662 | C4: 44.13333333 | E4: =(C4-C3)/C3 -> -0.2780806979
A5: Fall 2002 | B5: 943 | C5: 62.86666667 | D5: =(C5-C3)/C3 -> 0.02835332606 | E5: =(C5-C4)/C4 -> 0.4244712991
A6: Spring 2003 | B6: 955 | C6: 63.66666667 | D6: =(C6-C4)/C4 -> 0.4425981873 | E6: =(C6-C5)/C5 -> 0.01272534464 | F6: =((C5+C6)-(C3+C4))/(C3+C4) -> 0.2020265991
A7: Fall 2003 | B7: 874 | C7: 58.26666667 | D7: -0.07317073171 | E7: -0.08481675393
A8: Spring 2004 | B8: 791 | C8: 52.73333333 | D8: -0.1717277487 | E8: -0.09496567506 | F8: =((C7+C8)-(C5+C6))/(C5+C6) -> -0.1227608008
A9: Fall 2004 | B9: 1014 | C9: 67.6 | D9: 0.1601830664 | E9: 0.2819216182
A10: Spring 2005 | B10: 977 | C10: 65.13333333 | D10: 0.2351453856 | E10: -0.03648915187 | F10: =((C9+C10)-(C7+C8))/(C7+C8) -> 0.1957957958
A11: Fall 2005 | B11: 1515 | C11: 101 | D11: 0.4940828402 | E11: 0.5506653019
A12: Spring 2006 | B12: 1222 | C12: 81.46666667 | D12: 0.2507676561 | E12: -0.1933993399 | F12: =((C11+C12)-(C9+C10))/(C9+C10) -> 0.3746860874
A13: Fall 2006 | B13: 1886 | C13: 125.7333333 | D13: =(C13-C11)/C11 -> 0.2448844884 | E13: =(C13-C12)/C12 -> 0.5433715221
A14: Spring 2007 | B14: 1911 | C14: 127.4 | D14: 0.5638297872 | E14: 0.01325556734 | F14: =((C13+C14)-(C11+C12))/(C11+C12) -> 0.3872853489
A15: Fall 2007 | B15: 2632 | C15: 175.4666667 | D15: 0.3955461294 | E15: 0.3772893773
A16: Spring 2008 | B16: 2288 | C16: =B16/15 -> 152.5333333 | D16: 0.1972789116 | E16: -0.1306990881 | F16: =((C15+C16)-(C13+C14))/(C13+C14) -> 0.2957598104
A17: Fall 2008 | B17: 2595 | C17: =B17/15 -> 173 | D17: -0.01405775076 | E17: 0.1341783217
A18: Spring 2009 | B18: 2696 | C18: =B18/15 -> 179.7333333 | D18: 0.1783216783 | E18: 0.03892100193 | F18: =((C17+C18)-(C15+C16))/(C15+C16) -> 0.07540650407
A19: Fall 2009 | B19: 3153 | C19: 210.2 | D19: 0.2150289017 | E19: =(C19-C18)/C18 -> 0.1695103858

Sheet Sheet3
